fUST/lending_fUST_20240128
["ID","MTS","AMOUNT","RATE_DAILY","PERIOD"]
[312899305,1706439040093,-500.0,0.00021917,2]
[312899306,1706439040102,-560.74,0.00021917,2]
[312899307,1706439040112,-500.0,0.00021917,2]
[312899308,1706439040120,-500.0,0.00021917,2]
[312899309,1706439040129,-500.0,0.00021917,2]
[312899310,1706439040138,-500.0,0.00021917,2]
[312899311,1706439040147,-500.0,0.00021917,2]
[312899312,1706439040156,-151.0,0.00021917,2]
[312899313,1706439040166,-500.0,0.00021917,2]
[312899314,1706439040176,-500.0,0.00021917,2]
[312899315,1706439040185,-152.51532776,0.00021917,2]
[312899316,1706439040197,-1987.39,0.00021917,2]
[312899317,1706439040207,-1428.95,0.00021917,2]
[312899318,1706439040216,-560.94941592,0.00021917,2]
[312899320,1706439040225,-500.0,0.00021917,2]
[312899322,1706439040235,-500.0,0.00021917,2]
[312899324,1706439040244,-500.0,0.00021917,2]
[312899326,1706439040253,-500.0,0.00021917,2]
[312899328,1706439040261,-500.0,0.00021917,2]
[312899329,1706439040272,-500.0,0.00021917,2]
[312899332,1706439040282,-500.0,0.00021917,2]
[312899334,1706439040290,-500.0,0.00021917,2]
[312899336,1706439040299,-500.0,0.00021917,2]
[312899337,1706439040309,-500.0,0.00021917,2]
[312899339,1706439040318,-2618.59,0.00021917,2]
[312899340,1706439040327,-476.67319883,0.00021917,2]
[312899342,1706439040336,-456.30316214,0.00021917,2]
[312899345,1706439040345,-193.33149398,0.00021917,2]
[312899348,1706439040354,-500.0,0.00021917,2]
[312899350,1706439040363,-508.20795299,0.00021917,2]
[312899353,1706439040373,-508.85286137,0.00021917,2]
[312899355,1706439040381,-500.0,0.00021917,2]
[312899357,1706439040391,-500.0,0.00021917,2]
[312899359,1706439040400,-200.72682926,0.00021917,2]
[312899361,1706439040409,-1828.36,0.00021917,2]
[312899362,1706439040419,-500.0,0.00021917,2]
[312899363,1706439040429,-500.0,0.00021917,2]
[312899364,1706439040438,-500.0,0.00021917,2]
[312899365,1706439040447,-586.16320171,0.00021917,2]
[312899366,1706439040456,-500.0,0.00021917,2]
[312899367,1706439040465,-500.0,0.00021917,2]
[312899368,1706439040475,-500.0,0.00021917,2]
[312899369,1706439040485,-500.0,0.00021917,2]
[312899370,1706439040494,-500.0,0.00021917,2]
[312899371,1706439040504,-819.23,0.00021917,2]
[312899372,1706439040513,-915.71,0.00021917,2]
[312899373,1706439040522,-500.0,0.00021917,2]
[312899374,1706439040532,-500.0,0.00021917,2]
[312899375,1706439040541,-500.0,0.00021917,2]
[312899376,1706439040550,-500.0,0.00021917,2]
[312899377,1706439040559,-500.0,0.00021917,2]
[312899378,1706439040567,-500.0,0.00021917,2]
[312899379,1706439040576,-500.0,0.00021917,2]
[312899380,1706439040586,-500.0,0.00021917,2]
[312899381,1706439040595,-1781.92,0.00021917,2]
[312899382,1706439040605,-500.0,0.00021917,2]
[312899383,1706439040614,-501.09,0.00021917,2]
[312899384,1706439040623,-152.035045,0.00021917,2]
[312899385,1706439040632,-1024.81,0.00021917,2]
[312899386,1706439040641,-167.017897,0.00021917,2]
[312899387,1706439040650,-500.0,0.00021917,2]
[312899388,1706439040658,-167.017897,0.00021917,2]
[312899389,1706439040667,-500.0,0.00021917,2]
[312899390,1706439040677,-500.0,0.00021917,2]
[312899391,1706439040686,-500.0,0.00021917,2]
[312899392,1706439040694,-500.0,0.00021917,2]
[312899393,1706439040704,-507.68,0.00021917,2]
[312899394,1706439040713,-500.0,0.00021917,2]
[312899395,1706439040722,-500.0,0.00021917,2]
[312899396,1706439040731,-500.0,0.00021917,2]
[312899397,1706439040740,-151.0,0.00021917,2]
[312899398,1706439040749,-875.19,0.00021917,2]
[312899399,1706439040758,-2872.15,0.00021917,2]
[312899400,1706439040767,-500.0,0.00021917,2]
[312899401,1706439040776,-500.0,0.00021917,2]
[312899402,1706439040785,-500.0,0.00021917,2]
[312899403,1706439040794,-500.0,0.00021917,2]
[312899404,1706439040804,-535.6646005,0.00021917,2]
[312899405,1706439040813,-1166.55,0.00021917,2]
[312899406,1706439040822,-694.71,0.00021917,2]
[312899407,1706439040831,-500.0,0.00021917,2]
[312899408,1706439040840,-500.0,0.00021917,2]
[312899409,1706439040849,-932.43,0.00021917,2]
[312899410,1706439040859,-212.272603,0.00021917,2]
[312899411,1706439040867,-500.0,0.00021917,2]
[312899412,1706439040876,-212.272603,0.00021917,2]
[312899413,1706439040886,-500.0,0.00021917,2]
[312899414,1706439040895,-2219.22,0.00021917,2]
[312899415,1706439040904,-500.0,0.00021917,2]
[312899416,1706439040914,-5403.66,0.00021917,2]
[312899417,1706439040923,-3837.4,0.00021917,2]
[312899418,1706439040933,-500.0,0.00021917,2]
[312899419,1706439040942,-500.0,0.00021917,2]
[312899420,1706439040951,-11221.03,0.00021917,2]
[312899421,1706439040960,-500.0,0.00021917,2]
[312899422,1706439040970,-500.0,0.00021917,2]
[312899423,1706439040979,-501.56619566,0.00021917,2]
[312899424,1706439040987,-500.0,0.00021917,2]
[312899425,1706439040996,-500.0,0.00021917,2]
[312899426,1706439041005,-500.0,0.00021917,2]
[312899427,1706439041014,-500.0,0.00021917,2]
[312899428,1706439041023,-500.0,0.00021917,2]
[312899429,1706439041032,-500.0,0.00021917,2]
[312899430,1706439041042,-500.0,0.00021917,2]
[312899431,1706439041051,-624.72253014,0.00021917,2]
[312899432,1706439041060,-500.0,0.00021917,2]
[312899433,1706439041069,-981.65,0.00021917,2]
[312899434,1706439041079,-2383.88,0.00021917,2]
[312899435,1706439041088,-818.16,0.00021917,2]
[312899436,1706439041097,-500.0,0.00021917,2]
[312899437,1706439041106,-500.0,0.00021917,2]
[312899438,1706439041115,-511.78379089,0.00021917,2]
[312899439,1706439041125,-500.0,0.00021917,2]
[312899440,1706439041134,-500.0,0.00021917,2]
[312899441,1706439041143,-500.0,0.00021917,2]
[312899442,1706439041152,-500.0,0.00021917,2]
[312899443,1706439041161,-500.0,0.00021917,2]
[312899444,1706439041170,-503.02,0.00021917,2]
[312899445,1706439041179,-2484.13,0.00021917,2]
[312899446,1706439041191,-500.0,0.00021917,2]
[312899447,1706439041200,-500.0,0.00021917,2]
[312899448,1706439041210,-13960.78,0.00021917,2]
[312899449,1706439041219,-500.0,0.00021917,2]
[312899450,1706439041229,-3287.113905,0.00021917,2]
[312899451,1706439041238,-500.0,0.00021917,2]
[312899452,1706439041247,-3287.113905,0.00021917,2]
[312899453,1706439041257,-185.58917988,0.00021917,2]
[312899454,1706439041266,-500.0,0.00021917,2]
[312899455,1706439041275,-151.0,0.00021917,2]
[312899456,1706439041284,-4392.68,0.00021917,2]
[312899457,1706439041293,-4918.92,0.00021917,2]
[312899458,1706439041303,-500.0,0.00021917,2]
[312899459,1706439041312,-1185.91,0.00021917,2]
[312899460,1706439041321,-3422.07,0.00021917,2]
[312899461,1706439041330,-1000.0,0.00021917,2]
[312899463,1706439041339,-500.0,0.00021917,2]
[312899465,1706439041348,-500.0,0.00021917,2]
[312899466,1706439041357,-810.01,0.00021917,2]
[312899467,1706439041366,-500.0,0.00021917,2]
[312899468,1706439041376,-19576.21149661,0.00021917,2]
[312899469,1706439041585,-8157.82850339,0.00021917,2]
[312899470,1706439041594,-500.0,0.00021917,2]
[312899471,1706439041603,-506.28658522,0.00021917,2]
[312899472,1706439041612,-512.16512598,0.00021917,2]
[312899473,1706439041621,-154.777918,0.00021917,2]
[312899474,1706439041630,-371.79139029,0.00021917,2]
[312899475,1706439041641,-829.31771081,0.00021917,2]
[312899486,1706439043298,-155.0982102,0.00020051,2]
[312899488,1706439043307,-1146.20081328,0.00020051,2]
[312899490,1706439043316,-15882.42906723,0.00021917,2]
[312899492,1706439043328,-8706.82090439,0.00021917,2]
[312899504,1706439047889,-1231.50913479,0.00021907,3]
[312899505,1706439051172,155.00620025,0.00019724,3]
[312899506,1706439069197,155.00620025,0.00019724,3]
[312899508,1706439085181,155.00620025,0.00019724,3]
[312899511,1706439101183,155.00620025,0.00019724,3]
[312899513,1706439121200,155.00620025,0.00019724,3]
[312899514,1706439139234,155.00620025,0.00019724,3]
[312899515,1706439157778,155.00620025,0.00019633,3]
[312899516,1706439175210,155.00620025,0.00019633,3]
[312899517,1706439191202,155.00620025,0.00019633,3]
[312899518,1706439211210,155.00620025,0.00019633,3]
[312899519,1706439233208,155.00620025,0.00019633,3]
[312899520,1706439233935,191.83275073,0.00019633,2]
[312899521,1706439253241,155.00620025,0.00019633,3]
[312899522,1706439253934,155.00620025,0.00019633,2]
[312899523,1706439269313,155.00620025,0.00019633,3]
[312899524,1706439273932,155.00620025,0.00019633,2]
[312899525,1706439285247,155.00620025,0.00019633,3]
[312899526,1706439291931,155.00620025,0.00019633,2]
[312899527,1706439301254,155.00620025,0.00019633,3]
[312899528,1706439309972,155.00775039,0.00019633,2]
[312899529,1706439316902,441.59605775,0.00019817,2]
[312899530,1706439319258,155.00775039,0.00019633,3]
[312899531,1706439329951,253.87840219,0.00019633,2]
[312899532,1706439339261,155.00775039,0.00019633,3]
[312899533,1706439359264,155.00775039,0.00019633,3]
[312899535,1706439389264,155.00775039,0.00019633,3]
[312899536,1706439407272,155.00775039,0.00019633,3]
[312899537,1706439431263,155.00775039,0.00019633,3]
[312899538,1706439451266,155.00775039,0.00019633,3]
[312899539,1706439469289,155.00775039,0.00019633,3]
[312899540,1706439487274,155.00775039,0.00019633,3]
[312899541,1706439488127,5000.0,0.000222,7]
[312899542,1706439501641,1289.41713019,0.00019633,2]
[312899543,1706439503278,155.00775039,0.00019633,3]
[312899544,1706439519275,155.00775039,0.00019633,3]
[312899545,1706439541286,155.00775039,0.00019633,3]
[312899546,1706439557285,155.00775039,0.00019633,3]
[312899553,1706439581311,155.00775039,0.00019633,3]
[312899555,1706439601296,155.00775039,0.00019633,3]
[312899557,1706439918021,294.39737183,0.00019817,2]
[312899558,1706440210305,8175.947124,0.00019833,2]
[312899597,1706440238706,-161.19857963,0.0002025,2]
[312899598,1706440238716,-5214.02314025,0.0002025,2]
[312899599,1706440238727,-1146.20081328,0.00020251,2]
[312899600,1706440238736,-1485.48078161,0.00020252,2]
[312899601,1706440238746,-18921.17730606,0.00020252,2]
[312899602,1706440238755,-35007.3042408,0.00020267,2]
[312899603,1706440238765,-1646.54949107,0.00020724,2]
[312899604,1706440238775,-2235.08098812,0.00021597,2]
[312899605,1706440238785,-167.31888487,0.00021715,2]
[312899606,1706440238795,-167.31888484,0.00021749,2]
[312899607,1706440238804,-167.31888484,0.00021783,2]
[312899608,1706440238813,-7643.22,0.00021785,3]
[312899609,1706440238822,-9171.87,0.00021795,3]
[312899610,1706440238831,-4809.75,0.00021805,3]
[312899611,1706440238840,-188.99436691,0.00021815,2]
[312899613,1706440238850,-207.99032037,0.00021815,2]
[312899614,1706440238859,-171.95327391,0.00021815,2]
[312899615,1706440238868,-1367.98900414,0.00021815,2]
[312899616,1706440238878,-621.01361207,0.00021815,2]
[312899617,1706440238887,-488.59596042,0.00021815,2]
[312899618,1706440238896,-167.66325036,0.00021815,2]
[312899619,1706440238905,-16903.19736175,0.00021815,2]
[312899620,1706440238914,-788.87275899,0.00021815,2]
[312899621,1706440238923,-282.9628484,0.00021815,2]
[312899622,1706440238932,-1406.49498548,0.00021815,2]
[312899623,1706440238942,-297.37206321,0.00021815,2]
[312899624,1706440238951,-1589.9986431,0.00021815,2]
[312899625,1706440238960,-265.46862061,0.00021815,2]
[312899626,1706440238970,-155.02116883,0.00021815,2]
[312899627,1706440238979,-243.38918816,0.00021815,2]
[312899628,1706440238989,-191.036015,0.00021815,2]
[312899629,1706440238998,-155.14514716,0.00021815,2]
[312899630,1706440239007,-214.41595541,0.00021815,2]
[312899631,1706440239016,-196.97481196,0.00021815,2]
[312899632,1706440239025,-156.20898937,0.00021815,2]
[312899633,1706440239034,-156.09416496,0.00021816,2]
[312899634,1706440239044,-200.89934999,0.00021816,2]
[312899635,1706440239053,-213842.81145848,0.00021817,2]
[312899636,1706440239062,-167.31888484,0.00021817,2]
[312899637,1706440239071,-621.84389752,0.00021906,2]
[312899638,1706440239172,-309.91431217,0.00021915,2]
[312899639,1706440239184,-2082.90593167,0.00021915,2]
[312899640,1706440239195,-500.0,0.00021916,2]
[312899641,1706440239205,-500.0,0.00021916,2]
[312899642,1706440239214,-500.0,0.00021916,2]
[312899643,1706440239224,-500.0,0.00021916,2]
[312899644,1706440239234,-500.0,0.00021916,2]
[312899645,1706440239244,-500.0,0.00021916,2]
[312899646,1706440239253,-500.0,0.00021916,2]
[312899647,1706440239263,-500.0,0.00021916,2]
[312899648,1706440239272,-500.0,0.00021916,2]
[312899649,1706440239282,-500.0,0.00021916,2]
[312899650,1706440239291,-156.35796755,0.00021916,2]
[312899651,1706440239300,-425.31454102,0.00021916,2]
[312899652,1706440239310,-500.0,0.00021916,2]
[312899653,1706440239320,-634.03071431,0.00021916,2]
[312899654,1706440239329,-500.0,0.00021916,2]
[312899655,1706440239338,-500.0,0.00021916,2]
[312899656,1706440239348,-500.0,0.00021916,2]
[312899657,1706440239357,-500.0,0.00021916,2]
[312899658,1706440239366,-164.27609953,0.00021916,2]
[312899659,1706440239376,-500.0,0.00021916,2]
[312899660,1706440239386,-500.0,0.00021916,2]
[312899661,1706440239395,-500.0,0.00021916,2]
[312899662,1706440239404,-500.0,0.00021916,2]
[312899663,1706440239414,-500.0,0.00021916,2]
[312899664,1706440239423,-500.0,0.00021916,2]
[312899665,1706440239432,-500.0,0.00021916,2]
[312899666,1706440239442,-500.0,0.00021916,2]
[312899667,1706440239451,-500.0,0.00021916,2]
[312899668,1706440239460,-500.0,0.00021916,2]
[312899669,1706440239469,-647.02207258,0.00021916,2]
[312899670,1706440239479,-500.0,0.00021916,2]
[312899671,1706440239488,-500.0,0.00021916,2]
[312899672,1706440239497,-500.0,0.00021916,2]
[312899673,1706440239506,-500.0,0.00021916,2]
[312899674,1706440239515,-450.11338084,0.00021916,2]
[312899675,1706440239527,-500.0,0.00021916,2]
[312899676,1706440239537,-500.0,0.00021916,2]
[312899677,1706440239546,-500.0,0.00021916,2]
[312899678,1706440239555,-500.0,0.00021916,2]
[312899679,1706440239566,-500.0,0.00021916,2]
[312899680,1706440239575,-500.0,0.00021916,2]
[312899681,1706440239584,-500.0,0.00021916,2]
[312899682,1706440239594,-447.53970492,0.00021916,2]
[312899683,1706440239605,-500.0,0.00021916,2]
[312899684,1706440239614,-500.0,0.00021916,2]
[312899685,1706440239623,-611.48045657,0.00021917,2]
[312899686,1706440239633,-500.0,0.00021917,2]
[312899687,1706440239642,-500.0,0.00021917,2]
[312899688,1706440239652,-500.0,0.00021917,2]
[312899689,1706440239660,-906.05,0.00021917,2]
[312899690,1706440239669,-500.0,0.00021917,2]
[312899691,1706440239679,-500.0,0.00021917,2]
[312899692,1706440239689,-500.0,0.00021917,2]
[312899693,1706440239699,-2156.52,0.00021917,2]
[312899694,1706440239709,-156.42516188,0.00021917,2]
[312899695,1706440239718,-507.78936856,0.00021917,2]
[312899696,1706440239727,-500.0,0.00021917,2]
[312899697,1706440239737,-500.0,0.00021917,2]
[312899698,1706440239747,-500.0,0.00021917,2]
[312899699,1706440239756,-500.0,0.00021917,2]
[312899700,1706440239765,-1181.84,0.00021917,2]
[312899701,1706440239777,-1002.23887986,0.00021917,2]
[312899702,1706440239786,-1161.91,0.00021917,2]
[312899703,1706440239795,-500.0,0.00021917,2]
[312899704,1706440239805,-500.0,0.00021917,2]
[312899705,1706440239816,-500.0,0.00021917,2]
[312899706,1706440239825,-500.0,0.00021917,2]
[312899707,1706440239835,-511.32578597,0.00021917,2]
[312899708,1706440239845,-500.0,0.00021917,2]
[312899709,1706440239854,-1079.66,0.00021917,2]
[312899710,1706440239863,-500.0,0.00021917,2]
[312899711,1706440239872,-500.0,0.00021917,2]
[312899712,1706440239881,-152.51532776,0.00021917,2]
[312899713,1706440239890,-500.0,0.00021917,2]
[312899714,1706440239898,-500.0,0.00021917,2]
[312899715,1706440239907,-1428.95,0.00021917,2]
[312899716,1706440239916,-500.0,0.00021917,2]
[312899717,1706440239925,-500.0,0.00021917,2]
[312899718,1706440239934,-1987.39,0.00021917,2]
[312899719,1706440239943,-560.94941592,0.00021917,2]
[312899720,1706440239952,-500.0,0.00021917,2]
[312899721,1706440239961,-500.0,0.00021917,2]
[312899722,1706440239969,-500.0,0.00021917,2]
[312899723,1706440239978,-500.0,0.00021917,2]
[312899724,1706440239987,-193.33149398,0.00021917,2]
[312899725,1706440239996,-500.0,0.00021917,2]
[312899726,1706440240005,-500.0,0.00021917,2]
[312899727,1706440240014,-456.30316214,0.00021917,2]
[312899728,1706440240023,-476.67319883,0.00021917,2]
[312899729,1706440240033,-500.0,0.00021917,2]
[312899730,1706440240043,-500.0,0.00021917,2]
[312899731,1706440240054,-508.20795299,0.00021917,2]
[312899732,1706440240064,-500.0,0.00021917,2]
[312899733,1706440240074,-508.85286137,0.00021917,2]
[312899734,1706440240082,-200.72682926,0.00021917,2]
[312899735,1706440240092,-500.0,0.00021917,2]
[312899736,1706440240104,-586.16320171,0.00021917,2]
[312899737,1706440240114,-500.0,0.00021917,2]
[312899738,1706440240124,-500.0,0.00021917,2]
[312899739,1706440240133,-500.0,0.00021917,2]
[312899740,1706440240144,-500.0,0.00021917,2]
[312899741,1706440240154,-500.0,0.00021917,2]
[312899742,1706440240163,-500.0,0.00021917,2]
[312899743,1706440240172,-500.0,0.00021917,2]
[312899744,1706440240181,-500.0,0.00021917,2]
[312899745,1706440240189,-915.71,0.00021917,2]
[312899746,1706440240198,-904.35,0.00021917,2]
[312899747,1706440240209,-500.0,0.00021917,2]
[312899748,1706440240219,-500.0,0.00021917,2]
[312899749,1706440240228,-501.09,0.00021917,2]
[312899750,1706440240236,-1768.69,0.00021917,2]
[312899751,1706440240247,-500.0,0.00021917,2]
[312899752,1706440240256,-500.0,0.00021917,2]
[312899753,1706440240266,-500.0,0.00021917,2]
[312899754,1706440240276,-500.0,0.00021917,2]
[312899755,1706440240287,-500.0,0.00021917,2]
[312899756,1706440240297,-151.0,0.00021917,2]
[312899757,1706440240308,-500.0,0.00021917,2]
[312899758,1706440240317,-500.0,0.00021917,2]
[312899759,1706440240327,-5529.41,0.00021917,2]
[312899760,1706440240338,-507.68,0.00021917,2]
[312899761,1706440240348,-500.0,0.00021917,2]
[312899762,1706440240357,-500.0,0.00021917,2]
[312899763,1706440240367,-500.0,0.00021917,2]
[312899764,1706440240378,-500.0,0.00021917,2]
[312899765,1706440240388,-212.272603,0.00021917,2]
[312899766,1706440240398,-1757.48,0.00021917,2]
[312899767,1706440240407,-212.272603,0.00021917,2]
[312899768,1706440240418,-694.71,0.00021917,2]
[312899769,1706440240428,-501.56619566,0.00021917,2]
[312899770,1706440240437,-500.0,0.00021917,2]
[312899771,1706440240447,-500.0,0.00021917,2]
[312899772,1706440240456,-500.0,0.00021917,2]
[312899773,1706440240467,-500.0,0.00021917,2]
[312899774,1706440240476,-557.08,0.00021917,2]
[312899775,1706440240485,-500.0,0.00021917,2]
[312899776,1706440240494,-500.0,0.00021917,2]
[312899777,1706440240503,-185.58917988,0.00021917,2]
[312899778,1706440240512,-500.0,0.00021917,2]
[312899779,1706440240521,-500.0,0.00021917,2]
[312899780,1706440240534,-500.0,0.00021917,2]
[312899781,1706440240543,-500.0,0.00021917,2]
[312899782,1706440240553,-500.0,0.00021917,2]
[312899783,1706440240562,-818.16,0.00021917,2]
[312899785,1706440240571,-500.0,0.00021917,2]
[312899787,1706440240582,-500.0,0.00021917,2]
[312899789,1706440240591,-500.0,0.00021917,2]
[312899791,1706440240600,-560.74,0.00021917,2]
[312899793,1706440240610,-500.0,0.00021917,2]
[312899795,1706440240621,-500.0,0.00021917,2]
[312899796,1706440240630,-500.0,0.00021917,2]
[312899797,1706440240640,-500.0,0.00021917,2]
[312899798,1706440240649,-500.0,0.00021917,2]
[312899799,1706440240658,-500.0,0.00021917,2]
[312899800,1706440240668,-500.0,0.00021917,2]
[312899801,1706440240677,-154.777918,0.00021917,2]
[312899802,1706440240686,-500.0,0.00021917,2]
[312899804,1706440240697,-500.0,0.00021917,2]
[312899805,1706440240706,-500.0,0.00021917,2]
[312899806,1706440240715,-500.0,0.00021917,2]
[312899807,1706440240724,-500.0,0.00021917,2]
[312899809,1706440240733,-500.0,0.00021917,2]
[312899811,1706440240743,-2618.59,0.00021917,2]
[312899812,1706440240752,-500.0,0.00021917,2]
[312899813,1706440240761,-500.0,0.00021917,2]
[312899814,1706440240770,-500.0,0.00021917,2]
[312899815,1706440240779,-2074.42,0.00021917,2]
[312899817,1706440240788,-500.0,0.00021917,2]
[312899818,1706440240797,-500.0,0.00021917,2]
[312899819,1706440240878,-483.73588031,0.00021917,2]
[312899820,1706440240887,-1828.36,0.00021917,2]
[312899821,1706440240897,-500.0,0.00021917,2]
[312899822,1706440240905,-500.0,0.00021917,2]
[312899823,1706440240914,-632.8967434,0.00021917,2]
[312899824,1706440240924,-500.0,0.00021917,2]
[312899825,1706440240933,-500.0,0.00021917,2]
[312899826,1706440240942,-500.0,0.00021917,2]
[312899827,1706440240951,-819.23,0.00021917,2]
[312899828,1706440240960,-500.0,0.00021917,2]
[312899829,1706440240969,-500.0,0.00021917,2]
[312899830,1706440240979,-500.0,0.00021917,2]
[312899831,1706440240987,-500.0,0.00021917,2]
[312899832,1706440240996,-1781.92,0.00021917,2]
[312899833,1706440241005,-500.0,0.00021917,2]
[312899834,1706440241015,-500.0,0.00021917,2]
[312899835,1706440241024,-167.017897,0.00021917,2]
[312899836,1706440241033,-167.017897,0.00021917,2]
[312899837,1706440241042,-1024.81,0.00021917,2]
[312899838,1706440241051,-167.017897,0.00021917,2]
[312899839,1706440241059,-167.017897,0.00021917,2]
[312899840,1706440241069,-500.0,0.00021917,2]
[312899841,1706440241078,-500.0,0.00021917,2]
[312899842,1706440241088,-500.0,0.00021917,2]
[312899843,1706440241097,-500.0,0.00021917,2]
[312899844,1706440241107,-500.0,0.00021917,2]
[312899845,1706440241117,-500.0,0.00021917,2]
[312899846,1706440241127,-500.0,0.00021917,2]
[312899847,1706440241136,-500.0,0.00021917,2]
[312899848,1706440241146,-2872.15,0.00021917,2]
[312899849,1706440241156,-535.6646005,0.00021917,2]
[312899850,1706440241166,-897.64,0.00021917,2]
[312899851,1706440241177,-500.0,0.00021917,2]
[312899852,1706440241186,-500.0,0.00021917,2]
[312899853,1706440241195,-500.0,0.00021917,2]
[312899854,1706440241205,-2219.22,0.00021917,2]
[312899855,1706440241214,-932.43,0.00021917,2]
[312899856,1706440241223,-500.0,0.00021917,2]
[312899857,1706440241232,-5403.66,0.00021917,2]
[312899858,1706440241241,-500.0,0.00021917,2]
[312899859,1706440241250,-500.0,0.00021917,2]
[312899860,1706440241259,-11221.03,0.00021917,2]
[312899861,1706440241269,-500.0,0.00021917,2]
[312899862,1706440241278,-3837.4,0.00021917,2]
[312899863,1706440241288,-10000.0,0.00021917,2]
[312899864,1706440241296,-10000.0,0.00021917,2]
[312899865,1706440241306,-500.0,0.00021917,2]
[312899866,1706440241317,-500.0,0.00021917,2]
[312899867,1706440241327,-500.0,0.00021917,2]
[312899868,1706440241337,-500.0,0.00021917,2]
[312899869,1706440241347,-500.0,0.00021917,2]
[312899870,1706440241356,-500.0,0.00021917,2]
[312899871,1706440241367,-10000.0,0.00021917,2]
[312899872,1706440241377,-624.72253014,0.00021917,2]
[312899873,1706440241387,-10000.0,0.00021917,2]
[312899874,1706440241397,-4140.726289,0.00021917,2]
[312899875,1706440241407,-2383.88,0.00021917,2]
[312899876,1706440241417,-500.0,0.00021917,2]
[312899877,1706440241427,-500.0,0.00021917,2]
[312899879,1706440241437,-500.0,0.00021917,2]
[312899880,1706440241446,-153.33165401,0.00021917,2]
[312899881,1706440241456,-981.65,0.00021917,2]
[312899882,1706440241465,-500.0,0.00021917,2]
[312899883,1706440241474,-511.78379089,0.00021917,2]
[312899884,1706440241483,-500.0,0.00021917,2]
[312899885,1706440241492,-500.0,0.00021917,2]
[312899886,1706440241501,-3287.113905,0.00021917,2]
[312899887,1706440241511,-3287.113905,0.00021917,2]
[312899888,1706440241520,-3287.113905,0.00021917,2]
[312899889,1706440241532,-503.02,0.00021917,2]
[312899890,1706440241541,-3287.113905,0.00021917,2]
[312899891,1706440241551,-2484.13,0.00021917,2]
[312899892,1706440241560,-500.0,0.00021917,2]
[312899893,1706440241570,-151.0,0.00021917,2]
[312899894,1706440241579,-151.0,0.00021917,2]
[312899895,1706440241589,-500.0,0.00021917,2]
[312899896,1706440241598,-500.0,0.00021917,2]
[312899897,1706440241608,-527.14,0.00021917,2]
[312899898,1706440241619,-8445.73992787,0.00021917,2]
[312899899,1706440241748,-5515.04007213,0.00021917,2]
[312899900,1706440241758,-500.0,0.00021917,2]
[312899901,1706440241768,-523.38406144,0.00021917,2]
[312899902,1706440241778,-3664.42538931,0.00021917,2]
[312899903,1706440241790,-2006.45159994,0.00021917,2]
[312899904,1706440242000,-22063.16301075,0.00021917,2]
[312899905,1706440242010,-4918.92,0.00021917,2]
[312899906,1706440242019,-4392.68,0.00021917,2]
[312899907,1706440242028,-500.0,0.00021917,2]
[312899908,1706440242037,-500.0,0.00021917,2]
[312899909,1706440242046,-500.0,0.00021917,2]
[312899910,1706440242056,-500.0,0.00021917,2]
[312899911,1706440242065,-1185.91,0.00021917,2]
[312899912,1706440242074,-3422.07,0.00021917,2]
[312899913,1706440242083,-1451.23,0.00021917,2]
[312899914,1706440242092,-810.01,0.00021917,2]
[312899915,1706440242101,-500.0,0.00021917,2]